[Event "Titled Tuesday Blitz September 28 2021"]
[White "Mostbauer, Florian"]
[Black "Azarov, Sergei"]
[WhiteFideId "1626671"]
[BlackFideId "13501470"]
[WhiteElo "2272"]
[BlackElo "2494"]
[Result "0-1"]
[Round "02"]
[TimeControl "180+1"]
[Date "2021.09.28"]
[WhiteClock "0:00:06"]
[BlackClock "0:00:48"]

1. d4 {[%clk 0:03:00]}  f5 {[%clk 0:02:59]} 2. g3 {[%clk 0:02:59]}  Nf6 {[%clk 0:02:59]} 3. Bg2 {[%clk 0:02:56]}  e6 {[%clk 0:03:00]} 4. Nd2 {[%clk 0:02:53]}  Be7 {[%clk 0:02:53]} 5. e4 {[%clk 0:02:53]}  fxe4 {[%clk 0:02:43]} 6. Nxe4 {[%clk 0:02:54]}  O-O {[%clk 0:02:42]} 7. Nxf6+ {[%clk 0:02:52]}  Bxf6 {[%clk 0:02:42]} 8. Ne2 {[%clk 0:02:51]}  Nc6 {[%clk 0:02:40]} 9. O-O {[%clk 0:02:50]}  d6 {[%clk 0:02:40]} 10. c3 {[%clk 0:02:47]}  e5 {[%clk 0:02:38]} 11. dxe5 {[%clk 0:02:42]}  Nxe5 {[%clk 0:02:38]} 12. Nf4 {[%clk 0:02:31]}  Kh8 {[%clk 0:02:30]} 13. Nd5 {[%clk 0:02:27]}  Bg4 {[%clk 0:02:20]} 14. f3 {[%clk 0:02:19]}  Bh5 {[%clk 0:02:16]} 15. Nxf6 {[%clk 0:02:15]}  Qxf6 {[%clk 0:02:15]} 16. Bf4 {[%clk 0:02:04]}  Bg6 {[%clk 0:02:08]} 17. Bxe5 {[%clk 0:02:02]}  dxe5 {[%clk 0:02:08]} 18. Qe2 {[%clk 0:01:56]}  Rad8 {[%clk 0:01:57]} 19. Rad1 {[%clk 0:01:55]}  a5 {[%clk 0:01:48]} 20. Rfe1 {[%clk 0:01:55]}  h6 {[%clk 0:01:24]} 21. Rxd8 {[%clk 0:01:23]}  Rxd8 {[%clk 0:01:23]} 22. Qxe5 {[%clk 0:01:16]}  Qb6+ {[%clk 0:01:22]} 23. Kh1 {[%clk 0:00:37]}  Re8 {[%clk 0:01:15]} 24. Qxe8+ {[%clk 0:00:34]}  Bxe8 {[%clk 0:01:15]} 25. Rxe8+ {[%clk 0:00:34]}  Kh7 {[%clk 0:01:16]} 26. f4 {[%clk 0:00:29]}  Qxb2 {[%clk 0:01:13]} 27. Be4+ {[%clk 0:00:29]}  g6 {[%clk 0:01:14]} 28. Re7+ {[%clk 0:00:26]}  Kg8 {[%clk 0:01:14]} 29. Bd5+ {[%clk 0:00:21]}  Kf8 {[%clk 0:01:11]} 30. Rf7+ {[%clk 0:00:19]}  Ke8 {[%clk 0:01:11]} 31. c4 {[%clk 0:00:20]}  Qf2 {[%clk 0:01:04]} 32. h3 {[%clk 0:00:11]}  Qxg3 {[%clk 0:01:00]} 33. Rxc7 {[%clk 0:00:10]}  Qxh3+ {[%clk 0:01:01]} 34. Kg1 {[%clk 0:00:09]}  Qg3+ {[%clk 0:01:00]} 35. Kh1 {[%clk 0:00:10]}  b6 {[%clk 0:00:53]} 36. Rf7 {[%clk 0:00:07]}  Qe1+ {[%clk 0:00:50]} 37. Kg2 {[%clk 0:00:07]}  Qd2+ {[%clk 0:00:49]} 38. Kf3 {[%clk 0:00:08]}  Qxd5+ {[%clk 0:00:47]} 39. cxd5 {[%clk 0:00:06]}  Kxf7 {[%clk 0:00:48]} 0-1


[Site "https://www.chess.com"]

[Event "Titled Tuesday Blitz September 28 2021"]
[White "Nakamura, Hikaru"]
[Black "Hjartarson, Johann"]
[WhiteFideId "2016192"]
[BlackFideId "2300044"]
[WhiteElo "3200"]
[BlackElo "2595"]
[Result "1-0"]
[Round "02"]
[TimeControl "180+1"]
[Date "2021.09.28"]
[WhiteClock "0:00:52"]
[BlackClock "0:00:12"]

1. Nf3 {[%clk 0:03:00]}  Nf6 {[%clk 0:02:59]} 2. b3 {[%clk 0:03:00]}  b5 {[%clk 0:02:58]} 3. e3 {[%clk 0:02:59]}  a6 {[%clk 0:02:58]} 4. Na3 {[%clk 0:02:59]}  Bb7 {[%clk 0:02:57]} 5. c4 {[%clk 0:02:59]}  b4 {[%clk 0:02:57]} 6. Nc2 {[%clk 0:02:59]}  e6 {[%clk 0:02:57]} 7. d4 {[%clk 0:02:59]}  c5 {[%clk 0:02:57]} 8. Bb2 {[%clk 0:02:56]}  Be7 {[%clk 0:02:56]} 9. Bd3 {[%clk 0:02:45]}  O-O {[%clk 0:02:56]} 10. O-O {[%clk 0:02:45]}  a5 {[%clk 0:02:48]} 11. a3 {[%clk 0:02:41]}  d5 {[%clk 0:02:48]} 12. axb4 {[%clk 0:02:32]}  cxb4 {[%clk 0:02:42]} 13. c5 {[%clk 0:02:30]}  Nc6 {[%clk 0:02:42]} 14. Qe2 {[%clk 0:02:29]}  Ne4 {[%clk 0:02:37]} 15. Ra2 {[%clk 0:02:22]}  f5 {[%clk 0:02:35]} 16. Rfa1 {[%clk 0:02:21]}  Bf6 {[%clk 0:02:34]} 17. Bb5 {[%clk 0:02:21]}  Qc7 {[%clk 0:02:32]} 18. Nce1 {[%clk 0:02:20]}  g5 {[%clk 0:02:15]} 19. Nd3 {[%clk 0:02:08]}  g4 {[%clk 0:02:15]} 20. Nfe1 {[%clk 0:02:00]}  h5 {[%clk 0:02:08]} 21. Nf4 {[%clk 0:01:58]}  Nd8 {[%clk 0:01:39]} 22. Nxh5 {[%clk 0:01:55]}  Bh8 {[%clk 0:01:38]} 23. Nd3 {[%clk 0:01:54]}  Bc6 {[%clk 0:01:26]} 24. Ndf4 {[%clk 0:01:39]}  Ng5 {[%clk 0:01:18]} 25. Ng6 {[%clk 0:01:32]}  Qh7 {[%clk 0:01:11]} 26. Nhf4 {[%clk 0:01:30]}  Rf6 {[%clk 0:01:07]} 27. Nxh8 {[%clk 0:01:30]}  Rh6 {[%clk 0:01:00]} 28. h3 {[%clk 0:01:29]}  gxh3 {[%clk 0:00:48]} 29. g3 {[%clk 0:01:29]}  Kxh8 {[%clk 0:00:38]} 30. Rxa5 {[%clk 0:01:26]}  Rxa5 {[%clk 0:00:36]} 31. Rxa5 {[%clk 0:01:27]}  Bxb5 {[%clk 0:00:26]} 32. Rxb5 {[%clk 0:01:23]}  h2+ {[%clk 0:00:23]} 33. Kh1 {[%clk 0:01:23]}  Qa7 {[%clk 0:00:23]} 34. Rb6 {[%clk 0:00:55]}  Qa2 {[%clk 0:00:21]} 35. Qc2 {[%clk 0:00:55]}  Ne4 {[%clk 0:00:20]} 36. Nd3 {[%clk 0:00:55]}  Nf7 {[%clk 0:00:14]} 37. c6 {[%clk 0:00:54]}  Nfd6 {[%clk 0:00:12]} 38. c7 {[%clk 0:00:52]} 1-0


[Site "https://www.chess.com"]

[Event "Titled Tuesday Blitz September 28 2021"]
[White "Nastore, Pavel-Alexandru"]
[Black "Parkhov, Yair"]
[WhiteFideId "1255002"]
[BlackFideId "2813408"]
[WhiteElo "1763"]
[BlackElo "2131"]
[Result "0-1"]
[Round "02"]
[TimeControl "180+1"]
[Date "2021.09.28"]
[WhiteClock "0:00:40"]
[BlackClock "0:00:57"]

1. e4 {[%clk 0:03:00]}  c6 {[%clk 0:02:58]} 2. d4 {[%clk 0:03:00]}  d5 {[%clk 0:02:59]} 3. e5 {[%clk 0:03:01]}  Bf5 {[%clk 0:02:59]} 4. Nf3 {[%clk 0:03:02]}  e6 {[%clk 0:02:59]} 5. Be2 {[%clk 0:03:02]}  c5 {[%clk 0:02:59]} 6. Be3 {[%clk 0:03:01]}  cxd4 {[%clk 0:02:58]} 7. Nxd4 {[%clk 0:02:59]}  Ne7 {[%clk 0:02:58]} 8. Bg5 {[%clk 0:02:47]}  Be4 {[%clk 0:02:40]} 9. f3 {[%clk 0:02:45]}  Bg6 {[%clk 0:02:40]} 10. Bb5+ {[%clk 0:02:45]}  Nd7 {[%clk 0:02:39]} 11. Nc3 {[%clk 0:02:31]}  a6 {[%clk 0:02:38]} 12. Ba4 {[%clk 0:02:22]}  b5 {[%clk 0:02:32]} 13. Bb3 {[%clk 0:02:22]}  h6 {[%clk 0:02:28]} 14. Bf4 {[%clk 0:02:18]}  Nf5 {[%clk 0:02:20]} 15. Nxf5 {[%clk 0:02:16]}  Bxf5 {[%clk 0:02:21]} 16. O-O {[%clk 0:01:56]}  Bc5+ {[%clk 0:02:15]} 17. Kh1 {[%clk 0:01:56]}  O-O {[%clk 0:02:04]} 18. Ne2 {[%clk 0:01:55]}  Qb6 {[%clk 0:02:00]} 19. c3 {[%clk 0:01:53]}  Be3 {[%clk 0:01:58]} 20. Bg3 {[%clk 0:01:50]}  a5 {[%clk 0:01:53]} 21. Nd4 {[%clk 0:01:49]}  Bh7 {[%clk 0:01:45]} 22. Re1 {[%clk 0:01:42]}  Bxd4 {[%clk 0:01:41]} 23. cxd4 {[%clk 0:01:41]}  a4 {[%clk 0:01:41]} 24. Bc2 {[%clk 0:01:40]}  Bxc2 {[%clk 0:01:41]} 25. Qxc2 {[%clk 0:01:41]}  Qxd4 {[%clk 0:01:42]} 26. Qc6 {[%clk 0:01:35]}  Nc5 {[%clk 0:01:07]} 27. Rad1 {[%clk 0:01:27]}  Nd3 {[%clk 0:01:04]} 28. Qxb5 {[%clk 0:00:50]}  Qc4 {[%clk 0:00:58]} 29. Qxc4 {[%clk 0:00:39]}  dxc4 {[%clk 0:00:59]} 30. b3 {[%clk 0:00:40]}  Nxe1 {[%clk 0:00:57]} 0-1


[Site "https://www.chess.com"]

[Event "Titled Tuesday Blitz September 28 2021"]
[White "Nazaretyan, Tigran"]
[Black "Sjugirov, Sanan"]
[WhiteFideId "24162345"]
[BlackFideId "4189302"]
[WhiteElo "2589"]
[BlackElo "2985"]
[Result "0-1"]
[Round "02"]
[TimeControl "180+1"]
[Date "2021.09.28"]
[WhiteClock "0:00:16"]
[BlackClock "0:01:31"]

1. d4 {[%clk 0:03:00]}  Nf6 {[%clk 0:02:58]} 2. c4 {[%clk 0:03:00]}  e6 {[%clk 0:02:58]} 3. Nf3 {[%clk 0:03:00]}  b6 {[%clk 0:02:58]} 4. a3 {[%clk 0:03:00]}  Bb7 {[%clk 0:02:57]} 5. Nc3 {[%clk 0:02:59]}  Ne4 {[%clk 0:02:57]} 6. Nxe4 {[%clk 0:02:58]}  Bxe4 {[%clk 0:02:57]} 7. Bf4 {[%clk 0:02:51]}  d6 {[%clk 0:02:55]} 8. e3 {[%clk 0:02:51]}  Nd7 {[%clk 0:02:54]} 9. Bd3 {[%clk 0:02:51]}  Bb7 {[%clk 0:02:55]} 10. e4 {[%clk 0:02:46]}  e5 {[%clk 0:02:52]} 11. dxe5 {[%clk 0:02:31]}  dxe5 {[%clk 0:02:51]} 12. Nxe5 {[%clk 0:02:32]}  Bd6 {[%clk 0:02:50]} 13. Nxf7 {[%clk 0:01:28]}  Kxf7 {[%clk 0:02:48]} 14. Bxd6 {[%clk 0:01:27]}  cxd6 {[%clk 0:02:47]} 15. O-O {[%clk 0:01:24]}  Qf6 {[%clk 0:02:28]} 16. b4 {[%clk 0:01:11]}  Rhf8 {[%clk 0:02:26]} 17. c5 {[%clk 0:01:05]}  dxc5 {[%clk 0:02:21]} 18. Bc4+ {[%clk 0:01:05]}  Ke7 {[%clk 0:02:21]} 19. Qe2 {[%clk 0:00:40]}  Rae8 {[%clk 0:02:11]} 20. Rad1 {[%clk 0:00:39]}  Ne5 {[%clk 0:02:06]} 21. Bb5 {[%clk 0:00:38]}  Rd8 {[%clk 0:02:04]} 22. bxc5 {[%clk 0:00:39]}  bxc5 {[%clk 0:02:04]} 23. Qe3 {[%clk 0:00:39]}  Rd4 {[%clk 0:01:59]} 24. f3 {[%clk 0:00:33]}  Rfd8 {[%clk 0:01:56]} 25. Rc1 {[%clk 0:00:32]}  c4 {[%clk 0:01:48]} 26. f4 {[%clk 0:00:25]}  Ng4 {[%clk 0:01:45]} 27. Qg3 {[%clk 0:00:24]}  h5 {[%clk 0:01:42]} 28. e5 {[%clk 0:00:24]}  Qb6 {[%clk 0:01:41]} 29. Qh4+ {[%clk 0:00:22]}  Kf8 {[%clk 0:01:40]} 30. Qxh5 {[%clk 0:00:21]}  Rd1+ {[%clk 0:01:33]} 31. Kh1 {[%clk 0:00:20]}  Nf2+ {[%clk 0:01:32]} 32. Kg1 {[%clk 0:00:19]}  Nh3+ {[%clk 0:01:32]} 33. Kh1 {[%clk 0:00:18]}  Qg1+ {[%clk 0:01:31]} 34. Rxg1 {[%clk 0:00:16]}  Nf2# {[%clk 0:01:31]} 0-1


[Site "https://www.chess.com"]

[Event "Titled Tuesday Blitz September 28 2021"]
[White "Omariev, Maksim"]
[Black "Yanchenko, Roman"]
[WhiteFideId "4193423"]
[BlackFideId "4137329"]
[WhiteElo "2464"]
[BlackElo "2514"]
[Result "0-1"]
[Round "02"]
[TimeControl "180+1"]
[Date "2021.09.28"]
[WhiteClock "0:00:06"]
[BlackClock "0:02:36"]

1. g4 {[%clk 0:03:00]}  d5 {[%clk 0:02:58]} 2. Bg2 {[%clk 0:03:01]}  e5 {[%clk 0:02:57]} 3. d4 {[%clk 0:02:53]}  e4 {[%clk 0:02:57]} 4. h3 {[%clk 0:02:51]}  h5 {[%clk 0:02:57]} 5. g5 {[%clk 0:02:51]}  Bd6 {[%clk 0:02:55]} 6. c4 {[%clk 0:02:51]}  c6 {[%clk 0:02:55]} 7. Nc3 {[%clk 0:02:51]}  Ne7 {[%clk 0:02:55]} 8. Qb3 {[%clk 0:02:28]}  O-O {[%clk 0:02:53]} 9. Bd2 {[%clk 0:02:23]}  Bc7 {[%clk 0:02:53]} 10. O-O-O {[%clk 0:02:06]}  Be6 {[%clk 0:02:45]} 11. Qxb7 {[%clk 0:02:00]}  Nd7 {[%clk 0:02:45]} 12. Qa6 {[%clk 0:01:38]}  Nb6 {[%clk 0:02:41]} 13. c5 {[%clk 0:01:26]}  Nc4 {[%clk 0:02:41]} 14. e3 {[%clk 0:01:15]}  Ba5 {[%clk 0:02:39]} 15. Nb1 {[%clk 0:00:41]}  Qb8 {[%clk 0:02:38]} 16. b3 {[%clk 0:00:09]}  Bc8 {[%clk 0:02:37]} 17. Qxa5 {[%clk 0:00:07]}  Nxa5 {[%clk 0:02:37]} 18. Bxa5 {[%clk 0:00:08]}  Ba6 {[%clk 0:02:38]} 19. Bf1 {[%clk 0:00:05]}  Bxf1 {[%clk 0:02:36]} 20. Rxf1 {[%clk 0:00:06]}  Qb5 {[%clk 0:02:36]} 0-1


[Site "https://www.chess.com"]

[Event "Titled Tuesday Blitz September 28 2021"]
[White "OnePeculiarConundrum"]
[Black "Gelman, Alexander"]
[BlackFideId "4118316"]
[WhiteElo "2399"]
[BlackElo "2375"]
[Result "0-1"]
[Round "02"]
[TimeControl "180+1"]
[Date "2021.09.28"]
[WhiteClock "0:01:27"]
[BlackClock "0:01:01"]

1. e4 {[%clk 0:02:46]}  c5 {[%clk 0:02:59]} 2. Nf3 {[%clk 0:02:44]}  d6 {[%clk 0:02:58]} 3. Bb5+ {[%clk 0:02:44]}  Bd7 {[%clk 0:02:58]} 4. Bxd7+ {[%clk 0:02:44]}  Nxd7 {[%clk 0:02:58]} 5. O-O {[%clk 0:02:43]}  Ngf6 {[%clk 0:02:58]} 6. Re1 {[%clk 0:02:43]}  e6 {[%clk 0:02:58]} 7. c3 {[%clk 0:02:43]}  Be7 {[%clk 0:02:57]} 8. d4 {[%clk 0:02:44]}  O-O {[%clk 0:02:52]} 9. Nbd2 {[%clk 0:02:42]}  cxd4 {[%clk 0:02:51]} 10. cxd4 {[%clk 0:02:42]}  Rc8 {[%clk 0:02:50]} 11. e5 {[%clk 0:02:41]}  dxe5 {[%clk 0:02:50]} 12. dxe5 {[%clk 0:02:41]}  Nd5 {[%clk 0:02:50]} 13. Ne4 {[%clk 0:02:42]}  Nc5 {[%clk 0:02:50]} 14. Nxc5 {[%clk 0:02:33]}  Bxc5 {[%clk 0:02:46]} 15. Bg5 {[%clk 0:02:31]}  Qb6 {[%clk 0:02:46]} 16. Qe2 {[%clk 0:02:30]}  h6 {[%clk 0:02:44]} 17. Bh4 {[%clk 0:02:29]}  Rc7 {[%clk 0:02:02]} 18. Bg3 {[%clk 0:02:26]}  Rfc8 {[%clk 0:02:01]} 19. h3 {[%clk 0:02:24]}  Bb4 {[%clk 0:02:00]} 20. Reb1 {[%clk 0:02:19]}  Rc2 {[%clk 0:02:00]} 21. Qe4 {[%clk 0:02:20]}  a5 {[%clk 0:01:50]} 22. a3 {[%clk 0:02:18]}  Be7 {[%clk 0:01:49]} 23. Qd3 {[%clk 0:02:14]}  Rxb2 {[%clk 0:01:45]} 24. Rxb2 {[%clk 0:02:11]}  Qxb2 {[%clk 0:01:46]} 25. Rb1 {[%clk 0:02:12]}  Rc1+ {[%clk 0:01:46]} 26. Rxc1 {[%clk 0:02:11]}  Qxc1+ {[%clk 0:01:47]} 27. Kh2 {[%clk 0:02:12]}  Qxa3 {[%clk 0:01:47]} 28. Qb5 {[%clk 0:02:12]}  Qb4 {[%clk 0:01:40]} 29. Qe8+ {[%clk 0:02:11]}  Bf8 {[%clk 0:01:41]} 30. Nh4 {[%clk 0:01:53]}  a4 {[%clk 0:01:38]} 31. Ng6 {[%clk 0:01:53]}  a3 {[%clk 0:01:24]} 32. Bh4 {[%clk 0:01:52]}  fxg6 {[%clk 0:01:13]} 33. Qxe6+ {[%clk 0:01:51]}  Kh7 {[%clk 0:01:14]} 34. Qxd5 {[%clk 0:01:37]}  Qxh4 {[%clk 0:01:13]} 35. Qxb7 {[%clk 0:01:33]}  Qf4+ {[%clk 0:01:06]} 36. Kg1 {[%clk 0:01:31]}  Qxe5 {[%clk 0:01:07]} 37. Qa8 {[%clk 0:01:30]}  Bc5 {[%clk 0:01:06]} 38. Qa4 {[%clk 0:01:27]}  Qe1+ {[%clk 0:01:05]} 39. Kh2 {[%clk 0:01:27]}  Bxf2 {[%clk 0:01:05]} 40. h4 {[%clk 0:01:27]}  Qg1+ {[%clk 0:00:59]} 41. Kh3 {[%clk 0:01:27]}  Qh1+ {[%clk 0:00:59]} 42. Kg4 {[%clk 0:01:28]}  Qxh4+ {[%clk 0:01:00]} 43. Kf3 {[%clk 0:01:27]}  Qxa4 {[%clk 0:01:01]} 44. g4 {[%clk 0:01:27]}  a2 {[%clk 0:01:01]} 45. g5 {[%clk 0:01:27]}  a1=Q {[%clk 0:01:01]} 0-1


[Site "https://www.chess.com"]

[Event "Titled Tuesday Blitz September 28 2021"]
[White "Oparin, Grigoriy"]
[Black "AleksanderHnydiuk"]
[WhiteFideId "24125890"]
[WhiteElo "2604"]
[BlackElo "2567"]
[Result "1-0"]
[Round "02"]
[TimeControl "180+1"]
[Date "2021.09.28"]
[WhiteClock "0:01:00"]
[BlackClock "0:00:02"]

1. e4 {[%clk 0:02:33]}  c5 {[%clk 0:02:59]} 2. Nf3 {[%clk 0:02:33]}  d6 {[%clk 0:02:59]} 3. Nc3 {[%clk 0:02:33]}  a6 {[%clk 0:02:57]} 4. d4 {[%clk 0:02:27]}  cxd4 {[%clk 0:02:58]} 5. Nxd4 {[%clk 0:02:28]}  Nf6 {[%clk 0:02:58]} 6. h3 {[%clk 0:02:28]}  e6 {[%clk 0:02:57]} 7. g4 {[%clk 0:02:26]}  Nfd7 {[%clk 0:02:57]} 8. Bg2 {[%clk 0:02:24]}  Be7 {[%clk 0:02:56]} 9. Be3 {[%clk 0:02:18]}  Nc6 {[%clk 0:02:55]} 10. Qd2 {[%clk 0:02:14]}  O-O {[%clk 0:02:55]} 11. O-O {[%clk 0:02:14]}  Nxd4 {[%clk 0:02:52]} 12. Bxd4 {[%clk 0:02:14]}  b5 {[%clk 0:02:53]} 13. e5 {[%clk 0:02:11]}  d5 {[%clk 0:02:43]} 14. Ne2 {[%clk 0:01:59]}  a5 {[%clk 0:02:35]} 15. f4 {[%clk 0:01:58]}  Ba6 {[%clk 0:02:33]} 16. Rf3 {[%clk 0:01:37]}  Rc8 {[%clk 0:02:32]} 17. f5 {[%clk 0:01:36]}  Bg5 {[%clk 0:02:29]} 18. Nf4 {[%clk 0:01:34]}  Qc7 {[%clk 0:02:20]} 19. Re1 {[%clk 0:01:33]}  Bxf4 {[%clk 0:01:51]} 20. Qxf4 {[%clk 0:01:31]}  Qxc2 {[%clk 0:01:49]} 21. f6 {[%clk 0:01:26]}  Qg6 {[%clk 0:01:19]} 22. h4 {[%clk 0:01:05]}  h6 {[%clk 0:01:05]} 23. Bf1 {[%clk 0:01:01]}  gxf6 {[%clk 0:00:38]} 24. exf6 {[%clk 0:00:59]}  e5 {[%clk 0:00:34]} 25. Bxe5 {[%clk 0:01:00]}  Nxe5 {[%clk 0:00:35]} 26. Rxe5 {[%clk 0:01:01]}  Rfe8 {[%clk 0:00:21]} 27. Bd3 {[%clk 0:00:59]}  Rc1+ {[%clk 0:00:09]} 28. Kh2 {[%clk 0:00:59]}  Rc2+ {[%clk 0:00:09]} 29. Kg3 {[%clk 0:00:59]}  Rxe5 {[%clk 0:00:03]} 30. Bxg6 {[%clk 0:00:59]}  Ree2 {[%clk 0:00:03]} 31. Bxc2 {[%clk 0:01:00]}  Rxc2 {[%clk 0:00:02]} 32. Qxh6 {[%clk 0:01:00]} 1-0


[Site "https://www.chess.com"]

[Event "Titled Tuesday Blitz September 28 2021"]
[White "Pavlidis, Anastasios"]
[Black "Aldokhin, Ivan"]
[WhiteFideId "4208404"]
[BlackFideId "24115720"]
[WhiteElo "2136"]
[BlackElo "2265"]
[Result "1-0"]
[Round "02"]
[TimeControl "180+1"]
[Date "2021.09.28"]
[WhiteClock "0:00:53"]
[BlackClock "0:00:06"]

1. d4 {[%clk 0:03:00]}  Nf6 {[%clk 0:02:59]} 2. c4 {[%clk 0:03:00]}  g6 {[%clk 0:03:00]} 3. Nc3 {[%clk 0:03:00]}  Bg7 {[%clk 0:03:01]} 4. e4 {[%clk 0:02:59]}  d6 {[%clk 0:03:01]} 5. Nf3 {[%clk 0:02:56]}  O-O {[%clk 0:03:01]} 6. Be2 {[%clk 0:02:56]}  Nc6 {[%clk 0:03:01]} 7. d5 {[%clk 0:02:54]}  Nb4 {[%clk 0:03:01]} 8. O-O {[%clk 0:02:52]}  Re8 {[%clk 0:03:01]} 9. a3 {[%clk 0:02:51]}  Na6 {[%clk 0:03:01]} 10. Nd4 {[%clk 0:02:50]}  Nc5 {[%clk 0:02:58]} 11. f3 {[%clk 0:02:48]}  a5 {[%clk 0:02:58]} 12. Rb1 {[%clk 0:02:46]}  a4 {[%clk 0:02:55]} 13. Be3 {[%clk 0:02:45]}  e5 {[%clk 0:02:51]} 14. Ndb5 {[%clk 0:02:43]}  Nfd7 {[%clk 0:02:34]} 15. Re1 {[%clk 0:01:57]}  f5 {[%clk 0:02:33]} 16. Bf2 {[%clk 0:01:55]}  Rf8 {[%clk 0:02:13]} 17. exf5 {[%clk 0:01:52]}  gxf5 {[%clk 0:02:11]} 18. Bd3 {[%clk 0:01:51]}  e4 {[%clk 0:01:27]} 19. fxe4 {[%clk 0:01:50]}  f4 {[%clk 0:01:27]} 20. Be2 {[%clk 0:01:45]}  Ne5 {[%clk 0:01:26]} 21. Bxc5 {[%clk 0:01:38]}  dxc5 {[%clk 0:01:25]} 22. Bf3 {[%clk 0:01:38]}  Qh4 {[%clk 0:01:22]} 23. Rf1 {[%clk 0:01:34]}  Nxc4 {[%clk 0:00:50]} 24. Qe1 {[%clk 0:01:34]}  Qd8 {[%clk 0:00:40]} 25. e5 {[%clk 0:01:26]}  Nxe5 {[%clk 0:00:37]} 26. d6 {[%clk 0:01:24]}  c6 {[%clk 0:00:34]} 27. Nc7 {[%clk 0:01:21]}  Rb8 {[%clk 0:00:20]} 28. Ne4 {[%clk 0:01:21]}  Bf5 {[%clk 0:00:18]} 29. Rd1 {[%clk 0:01:19]}  b6 {[%clk 0:00:14]} 30. Kh1 {[%clk 0:01:18]}  Qd7 {[%clk 0:00:14]} 31. Qh4 {[%clk 0:01:17]}  Nxf3 {[%clk 0:00:12]} 32. gxf3 {[%clk 0:01:17]}  Bg6 {[%clk 0:00:11]} 33. Rg1 {[%clk 0:01:08]}  Rbe8 {[%clk 0:00:08]} 34. Nxe8 {[%clk 0:01:07]}  Rxe8 {[%clk 0:00:09]} 35. Nf6+ {[%clk 0:01:04]}  Bxf6 {[%clk 0:00:09]} 36. Qxf6 {[%clk 0:01:05]}  Re6 {[%clk 0:00:10]} 37. Qxf4 {[%clk 0:01:02]}  Kg7 {[%clk 0:00:10]} 38. Rge1 {[%clk 0:00:58]}  Bf7 {[%clk 0:00:05]} 39. Rxe6 {[%clk 0:00:56]}  Bxe6 {[%clk 0:00:06]} 40. Rg1+ {[%clk 0:00:53]} 1-0


[Site "https://www.chess.com"]

[Event "Titled Tuesday Blitz September 28 2021"]
[White "Perez Molina, Robinson"]
[Black "Pichot, Alan"]
[WhiteFideId "3403882"]
[BlackFideId "110973"]
[WhiteElo "2252"]
[BlackElo "2600"]
[Result "0-1"]
[Round "02"]
[TimeControl "180+1"]
[Date "2021.09.28"]
[WhiteClock "0:00:39"]
[BlackClock "0:01:30"]

1. Nf3 {[%clk 0:03:00]}  Nf6 {[%clk 0:02:59]} 2. c4 {[%clk 0:03:00]}  e6 {[%clk 0:02:59]} 3. Nc3 {[%clk 0:03:00]}  d5 {[%clk 0:02:59]} 4. d4 {[%clk 0:02:59]}  Nbd7 {[%clk 0:02:58]} 5. Bg5 {[%clk 0:02:59]}  c6 {[%clk 0:02:56]} 6. e3 {[%clk 0:02:58]}  h6 {[%clk 0:02:54]} 7. Bh4 {[%clk 0:02:56]}  Bd6 {[%clk 0:02:55]} 8. cxd5 {[%clk 0:02:51]}  exd5 {[%clk 0:02:54]} 9. Qc2 {[%clk 0:02:51]}  O-O {[%clk 0:02:54]} 10. O-O-O {[%clk 0:02:50]}  Qa5 {[%clk 0:02:52]} 11. g4 {[%clk 0:02:46]}  Ne4 {[%clk 0:02:44]} 12. Bd3 {[%clk 0:02:34]}  Nxc3 {[%clk 0:02:34]} 13. bxc3 {[%clk 0:02:33]}  Nb6 {[%clk 0:02:34]} 14. Rhg1 {[%clk 0:02:20]}  Na4 {[%clk 0:02:32]} 15. g5 {[%clk 0:01:58]}  h5 {[%clk 0:02:21]} 16. g6 {[%clk 0:01:50]}  f6 {[%clk 0:02:15]} 17. Kb1 {[%clk 0:01:08]}  Nxc3+ {[%clk 0:02:04]} 18. Ka1 {[%clk 0:01:08]}  Nxd1 {[%clk 0:02:04]} 19. Rxd1 {[%clk 0:01:06]}  Bg4 {[%clk 0:01:56]} 20. Be2 {[%clk 0:01:02]}  Bb4 {[%clk 0:01:51]} 21. Rc1 {[%clk 0:01:00]}  Rfe8 {[%clk 0:01:46]} 22. Ng1 {[%clk 0:00:55]}  Re4 {[%clk 0:01:29]} 23. f3 {[%clk 0:00:44]}  Rxe3 {[%clk 0:01:29]} 24. fxg4 {[%clk 0:00:40]}  Bc3+ {[%clk 0:01:29]} 25. Kb1 {[%clk 0:00:39]}  Bxd4 {[%clk 0:01:30]} 0-1


[Site "https://www.chess.com"]

[Event "Titled Tuesday Blitz September 28 2021"]
[White "Quparadze, Giga"]
[Black "Suvorov, Alexander"]
[WhiteFideId "13602250"]
[BlackFideId "12977063"]
[WhiteElo "2935"]
[BlackElo "2572"]
[Result "1-0"]
[Round "02"]
[TimeControl "180+1"]
[Date "2021.09.28"]
[WhiteClock "0:00:24"]
[BlackClock "0:00:17"]

1. e4 {[%clk 0:03:00]}  g6 {[%clk 0:02:55]} 2. d4 {[%clk 0:03:00]}  Bg7 {[%clk 0:02:55]} 3. Nc3 {[%clk 0:03:01]}  d6 {[%clk 0:02:55]} 4. Nge2 {[%clk 0:03:00]}  Nd7 {[%clk 0:02:52]} 5. h4 {[%clk 0:03:00]}  h6 {[%clk 0:02:50]} 6. Be3 {[%clk 0:02:59]}  e5 {[%clk 0:02:50]} 7. Qd2 {[%clk 0:02:59]}  Ngf6 {[%clk 0:02:48]} 8. f3 {[%clk 0:02:59]}  Nb6 {[%clk 0:02:32]} 9. b3 {[%clk 0:02:56]}  exd4 {[%clk 0:02:29]} 10. Bxd4 {[%clk 0:02:54]}  O-O {[%clk 0:02:28]} 11. O-O-O {[%clk 0:02:40]}  c5 {[%clk 0:02:01]} 12. Bxc5 {[%clk 0:02:39]}  Ne8 {[%clk 0:01:56]} 13. Bd4 {[%clk 0:02:38]}  Be6 {[%clk 0:01:55]} 14. Bxg7 {[%clk 0:02:37]}  Kxg7 {[%clk 0:01:56]} 15. h5 {[%clk 0:02:36]}  g5 {[%clk 0:01:50]} 16. f4 {[%clk 0:02:37]}  gxf4 {[%clk 0:01:45]} 17. Nxf4 {[%clk 0:02:36]}  Qf6 {[%clk 0:01:38]} 18. g4 {[%clk 0:02:34]}  Rc8 {[%clk 0:01:37]} 19. Nfe2 {[%clk 0:02:30]}  Qe5 {[%clk 0:01:18]} 20. Rg1 {[%clk 0:02:27]}  f6 {[%clk 0:01:16]} 21. Nd4 {[%clk 0:02:19]}  Rf7 {[%clk 0:01:13]} 22. Bh3 {[%clk 0:01:51]}  Rfc7 {[%clk 0:00:57]} 23. Nxe6+ {[%clk 0:01:49]}  Qxe6 {[%clk 0:00:58]} 24. g5 {[%clk 0:00:52]}  Qxh3 {[%clk 0:00:57]} 25. gxf6+ {[%clk 0:00:53]}  Kh7 {[%clk 0:00:52]} 26. Rg6 {[%clk 0:00:51]}  Qxh5 {[%clk 0:00:48]} 27. f7 {[%clk 0:00:48]}  Rxf7 {[%clk 0:00:41]} 28. Rg3 {[%clk 0:00:47]}  Qh4 {[%clk 0:00:40]} 29. Ne2 {[%clk 0:00:44]}  Nf6 {[%clk 0:00:36]} 30. Qxd6 {[%clk 0:00:38]}  Nxe4 {[%clk 0:00:35]} 31. Qg6+ {[%clk 0:00:37]}  Kh8 {[%clk 0:00:34]} 32. Rg4 {[%clk 0:00:29]}  Qf6 {[%clk 0:00:31]} 33. Qxe4 {[%clk 0:00:29]}  Qa1+ {[%clk 0:00:31]} 34. Kd2 {[%clk 0:00:30]}  Rd8+ {[%clk 0:00:30]} 35. Nd4 {[%clk 0:00:30]}  Qxa2 {[%clk 0:00:21]} 36. Rh1 {[%clk 0:00:26]}  Qa5+ {[%clk 0:00:19]} 37. Ke2 {[%clk 0:00:26]}  Rd6 {[%clk 0:00:16]} 38. Qe8+ {[%clk 0:00:25]}  Kh7 {[%clk 0:00:17]} 39. Qg8# {[%clk 0:00:24]} 1-0


[Site "https://www.chess.com"]